[Event "*** Titled Tuesday Blitz"]
[Site "Chess.com"]
[Date "2018.11.06"]
[Round "5"]
[White "jacky72"]
[Black "OK97"]
[Result "1-0"]
[WhiteElo "2705"]
[BlackElo "2734"]
[TimeControl "180+2"]
[EndTime "14:06:41 PST"]
[Termination "jacky72 won by checkmate"]

1. d4 {[%clk 0:03:01.9]} 1... Nf6 {[%clk 0:03:01]} 2. c4 {[%clk 0:03:03.2]} 2...
e6 {[%clk 0:03:02.5]} 3. Nf3 {[%clk 0:03:03.4]} 3... Bb4+ {[%clk 0:03:03.8]} 4.
Bd2 {[%clk 0:03:04.3]} 4... a5 {[%clk 0:03:04.5]} 5. Nc3 {[%clk 0:02:58.7]} 5...
b6 {[%clk 0:03:03.2]} 6. e3 {[%clk 0:03:00]} 6... Bb7 {[%clk 0:03:02.5]} 7. Bd3
{[%clk 0:03:01.5]} 7... O-O {[%clk 0:03:02.3]} 8. O-O {[%clk 0:03:02.9]} 8... d6
{[%clk 0:03:03.3]} 9. a3 {[%clk 0:02:56.9]} 9... Bxc3 {[%clk 0:03:03.9]} 10.
Bxc3 {[%clk 0:02:58.8]} 10... Ne4 {[%clk 0:03:02.5]} 11. Be1 {[%clk 0:02:59.4]}
11... Nd7 {[%clk 0:03:00.2]} 12. Nd2 {[%clk 0:02:59.7]} 12... Nxd2 {[%clk
0:02:54.9]} 13. Bxd2 {[%clk 0:02:59.4]} 13... f5 {[%clk 0:02:46]} 14. b4 {[%clk
0:03:00.7]} 14... axb4 {[%clk 0:02:36]} 15. axb4 {[%clk 0:03:00.5]} 15... Qe7
{[%clk 0:02:17.8]} 16. Qe2 {[%clk 0:02:46.8]} 16... Nf6 {[%clk 0:02:04.6]} 17.
f3 {[%clk 0:02:43.8]} 17... g6 {[%clk 0:01:59]} 18. Bc3 {[%clk 0:02:40.2]} 18...
e5 {[%clk 0:01:49]} 19. d5 {[%clk 0:02:38.9]} 19... b5 {[%clk 0:01:27.3]} 20. e4
{[%clk 0:02:37.1]} 20... bxc4 {[%clk 0:01:28.2]} 21. Bxc4 {[%clk 0:02:37.9]}
21... fxe4 {[%clk 0:01:24.3]} 22. fxe4 {[%clk 0:02:38.6]} 22... Nh5 {[%clk
0:01:24.7]} 23. Bd2 {[%clk 0:02:31.9]} 23... Nf4 {[%clk 0:01:15.4]} 24. Bxf4
{[%clk 0:02:32.2]} 24... exf4 {[%clk 0:01:16.7]} 25. Rxa8 {[%clk 0:02:31.3]}
25... Rxa8 {[%clk 0:01:12.4]} 26. Rxf4 {[%clk 0:02:25.9]} 26... Qe5 {[%clk
0:01:05.2]} 27. Rf1 {[%clk 0:02:26.5]} 27... Re8 {[%clk 0:00:57.3]} 28. Qf3
{[%clk 0:02:19]} 28... Qxe4 {[%clk 0:00:45.2]} 29. Qf7+ {[%clk 0:02:19.5]} 29...
Kh8 {[%clk 0:00:46.4]} 30. Qxc7 {[%clk 0:02:21.4]} 30... Bxd5 {[%clk 0:00:38.4]}
31. Bxd5 {[%clk 0:02:16.5]} 31... Qxd5 {[%clk 0:00:39.3]} 32. Qd7 {[%clk
0:02:05.9]} 32... Qd4+ {[%clk 0:00:36.5]} 33. Kh1 {[%clk 0:02:06.6]} 33... Qe5
{[%clk 0:00:32.6]} 34. b5 {[%clk 0:02:04.8]} 34... Re7 {[%clk 0:00:29.8]} 35.
Qd8+ {[%clk 0:01:58.7]} 35... Re8 {[%clk 0:00:30.7]} 36. Qd7 {[%clk 0:01:53.3]}
36... Re7 {[%clk 0:00:31.8]} 37. Qc8+ {[%clk 0:01:54.2]} 37... Re8 {[%clk
0:00:32.4]} 38. Qc6 {[%clk 0:01:55.7]} 38... Qe2 {[%clk 0:00:29.2]} 39. Rg1
{[%clk 0:01:45.2]} 39... Rb8 {[%clk 0:00:29.4]} 40. Rb1 {[%clk 0:01:38.5]} 40...
Qd3 {[%clk 0:00:26.8]} 41. Qc1 {[%clk 0:01:18.2]} 41... d5 {[%clk 0:00:23]} 42.
b6 {[%clk 0:01:17.5]} 42... d4 {[%clk 0:00:24.3]} 43. b7 {[%clk 0:01:17.2]}
43... Qc3 {[%clk 0:00:25.2]} 44. Qf4 {[%clk 0:00:58.2]} 44... Rxb7 {[%clk
0:00:25]} 45. Qf8# {[%clk 0:00:58.8]} 1-0

[Event "*** Titled Tuesday Blitz"]
[Site "Chess.com"]
[Date "2018.11.06"]
[Round "5"]
[White "VerdeNotte"]
[Black "NateSolon"]
[Result "1-0"]
[WhiteElo "2819"]
[BlackElo "2519"]
[TimeControl "180+2"]
[EndTime "14:06:44 PST"]
[Termination "VerdeNotte won by resignation"]

1. a3 {[%clk 0:03:01.9]} 1... d5 {[%clk 0:02:58.9]} 2. Nf3 {[%clk 0:03:02.1]}
2... Nf6 {[%clk 0:02:56.2]} 3. g3 {[%clk 0:03:02.9]} 3... Bf5 {[%clk 0:02:55.5]}
4. Bg2 {[%clk 0:03:03.9]} 4... e6 {[%clk 0:02:55.1]} 5. O-O {[%clk 0:03:01.4]}
5... Be7 {[%clk 0:02:52.9]} 6. d3 {[%clk 0:03:02.2]} 6... h6 {[%clk 0:02:53.8]}
7. Nbd2 {[%clk 0:02:56.9]} 7... O-O {[%clk 0:02:52]} 8. e4 {[%clk 0:02:57]} 8...
Bh7 {[%clk 0:02:22.2]} 9. Qe2 {[%clk 0:02:57.4]} 9... c5 {[%clk 0:02:17.4]} 10.
e5 {[%clk 0:02:55.1]} 10... Nfd7 {[%clk 0:02:18]} 11. c4 {[%clk 0:02:55.4]}
11... Nb6 {[%clk 0:02:06.1]} 12. Rd1 {[%clk 0:02:54.3]} 12... Nc6 {[%clk
0:02:06.5]} 13. b3 {[%clk 0:02:54.8]} 13... Qc7 {[%clk 0:01:58.4]} 14. Bb2
{[%clk 0:02:55.7]} 14... Rfd8 {[%clk 0:01:56.3]} 15. Nf1 {[%clk 0:02:55.3]}
15... a5 {[%clk 0:01:50.7]} 16. a4 {[%clk 0:02:51.3]} 16... Nb4 {[%clk
0:01:48.9]} 17. h4 {[%clk 0:02:35]} 17... dxc4 {[%clk 0:01:43]} 18. dxc4 {[%clk
0:02:36]} 18... Rxd1 {[%clk 0:01:34.9]} 19. Rxd1 {[%clk 0:02:36.2]} 19... Bc2
{[%clk 0:01:35.3]} 20. Rc1 {[%clk 0:02:25.8]} 20... Bxb3 {[%clk 0:01:34.3]} 21.
Ne3 {[%clk 0:02:20.9]} 21... Bxa4 {[%clk 0:01:14.3]} 22. Ng4 {[%clk 0:02:20.7]}
22... Bc6 {[%clk 0:01:10.5]} 23. Qe3 {[%clk 0:02:19.9]} 23... Bf8 {[%clk
0:01:08]} 24. Nf6+ {[%clk 0:02:01]} 24... gxf6 {[%clk 0:01:03]} 25. exf6 {[%clk
0:02:02.9]} 25... Rd8 {[%clk 0:00:42]} 26. Be5 {[%clk 0:01:49.3]} 26... Qd7
{[%clk 0:00:42.3]} 27. Bf1 {[%clk 0:01:50.6]} 27... Bxf3 {[%clk 0:00:29.3]} 28.
Qxf3 {[%clk 0:01:50.2]} 28... Qd2 {[%clk 0:00:30.2]} 29. Qg4+ {[%clk 0:01:31.6]}
29... Kh8 {[%clk 0:00:30]} 30. Rc3 {[%clk 0:01:32.5]} 30... a4 {[%clk
0:00:20.6]} 31. Re3 {[%clk 0:01:25.4]} 31... Qd1 {[%clk 0:00:21.2]} 32. Rf3
{[%clk 0:01:20.2]} 32... Nc2 {[%clk 0:00:20.3]} 33. Qf4 {[%clk 0:01:09]} 33...
Nd4 {[%clk 0:00:20.5]} 34. Re3 {[%clk 0:01:10.1]} 34... Nc2 {[%clk 0:00:17.8]}
35. Re4 {[%clk 0:01:04.4]} 35... Nd4 {[%clk 0:00:15.5]} 36. Bc7 {[%clk
0:01:03.5]} 36... Rd7 {[%clk 0:00:07.8]} 37. Bxb6 {[%clk 0:01:04.4]} 37... Nf3+
{[%clk 0:00:08.3]} 38. Kg2 {[%clk 0:01:05.2]} 38... Nd2 {[%clk 0:00:09.7]} 39.
Be2 {[%clk 0:01:00.4]} 39... Qc2 {[%clk 0:00:10.8]} 40. Re3 {[%clk 0:00:58.5]}
40... Qb2 {[%clk 0:00:07.7]} 41. Qb8 {[%clk 0:00:57.6]} 41... Kg8 {[%clk
0:00:07.9]} 42. Bxc5 {[%clk 0:00:58.5]} 42... Qxf6 {[%clk 0:00:03.5]} 43. Qxf8+
{[%clk 0:00:58.5]} 43... Kh7 {[%clk 0:00:04.9]} 44. Rd3 {[%clk 0:00:57.6]} 44...
Rc7 {[%clk 0:00:04.8]} 45. Rxd2 {[%clk 0:00:57.8]} 1-0

[Event "*** Titled Tuesday Blitz"]
[Site "Chess.com"]
[Date "2018.11.06"]
[Round "5"]
[White "danyuffa"]
[Black "dretch"]
[Result "1-0"]
[WhiteElo "2654"]
[BlackElo "2782"]
[TimeControl "180+2"]
[EndTime "14:06:45 PST"]
[Termination "danyuffa won by resignation"]

1. d4 {[%clk 0:03:01.9]} 1... d5 {[%clk 0:03:00.9]} 2. c4 {[%clk 0:03:03.1]}
2... c6 {[%clk 0:03:02.2]} 3. Nc3 {[%clk 0:03:03.5]} 3... dxc4 {[%clk
0:03:01.7]} 4. e4 {[%clk 0:03:03.8]} 4... b5 {[%clk 0:02:58.1]} 5. a4 {[%clk
0:03:04.8]} 5... b4 {[%clk 0:02:59]} 6. Nb1 {[%clk 0:03:05]} 6... Ba6 {[%clk
0:02:56.6]} 7. Qc2 {[%clk 0:03:05.6]} 7... Qxd4 {[%clk 0:02:55.8]} 8. Nf3 {[%clk
0:03:05.7]} 8... Qd6 {[%clk 0:02:55.9]} 9. Nbd2 {[%clk 0:03:03.7]} 9... c3
{[%clk 0:02:55.1]} 10. bxc3 {[%clk 0:03:02.6]} 10... Qc5 {[%clk 0:02:53.9]} 11.
c4 {[%clk 0:02:53.2]} 11... e5 {[%clk 0:02:44]} 12. Nb3 {[%clk 0:02:50.5]} 12...
Qe7 {[%clk 0:02:43]} 13. Be3 {[%clk 0:02:24.9]} 13... Nd7 {[%clk 0:02:41.3]} 14.
Be2 {[%clk 0:02:16.9]} 14... Ngf6 {[%clk 0:02:39]} 15. O-O {[%clk 0:02:06.8]}
15... c5 {[%clk 0:02:35.5]} 16. Rfd1 {[%clk 0:02:02.4]} 16... Bb7 {[%clk
0:02:25.9]} 17. Rd5 {[%clk 0:01:52.9]} 17... Bxd5 {[%clk 0:02:17.9]} 18. cxd5
{[%clk 0:01:51.6]} 18... Qd8 {[%clk 0:02:14.3]} 19. Bb5 {[%clk 0:01:49.5]} 19...
Bd6 {[%clk 0:02:12.3]} 20. Bc6 {[%clk 0:01:47.9]} 20... O-O {[%clk 0:02:07.9]}
21. Bxa8 {[%clk 0:01:40.4]} 21... Qxa8 {[%clk 0:02:08.3]} 22. Nfd2 {[%clk
0:01:40.4]} 22... c4 {[%clk 0:01:54.6]} 23. Qxc4 {[%clk 0:01:36.1]} 23... Rc8
{[%clk 0:01:54.1]} 24. Qa6 {[%clk 0:01:35]} 24... Bf8 {[%clk 0:01:47.5]} 25.
Qxa7 {[%clk 0:01:34.1]} 25... Qxa7 {[%clk 0:01:31.1]} 26. Bxa7 {[%clk 0:01:36]}
26... Ne8 {[%clk 0:01:31.9]} 27. a5 {[%clk 0:01:34.7]} 27... Ra8 {[%clk
0:01:28.6]} 28. Be3 {[%clk 0:01:34]} 28... Nc7 {[%clk 0:01:26.5]} 29. Nc4 {[%clk
0:01:32.1]} 29... Ra6 {[%clk 0:01:10.6]} 30. Nb6 {[%clk 0:01:26.5]} 30... Nf6
{[%clk 0:01:12]} 31. Rc1 {[%clk 0:01:22.9]} 31... Nb5 {[%clk 0:01:02.8]} 32. Rc8
{[%clk 0:01:22.8]} 32... Nd6 {[%clk 0:00:56.2]} 33. Rb8 {[%clk 0:01:16.6]} 33...
Ndxe4 {[%clk 0:00:52.2]} 34. f3 {[%clk 0:01:07.3]} 34... Nd6 {[%clk 0:00:49.1]}
35. Bc5 {[%clk 0:01:00.4]} 35... Nde8 {[%clk 0:00:49.5]} 36. Bxf8 {[%clk
0:00:56.7]} 36... Kxf8 {[%clk 0:00:50.5]} 37. d6 {[%clk 0:00:57.8]} 37... Ra7
{[%clk 0:00:48.3]} 38. Nc5 {[%clk 0:00:56.8]} 38... b3 {[%clk 0:00:23.9]} 39. d7
{[%clk 0:00:55]} 39... b2 {[%clk 0:00:17.4]} 40. dxe8=Q+ {[%clk 0:00:50.8]}
40... Nxe8 {[%clk 0:00:18.6]} 41. Ncd7+ {[%clk 0:00:41.8]} 41... Ke7 {[%clk
0:00:19]} 42. Nc8+ {[%clk 0:00:42.8]} 42... Kxd7 {[%clk 0:00:17.5]} 43. Nxa7
{[%clk 0:00:43.3]} 1-0

[Event "*** Titled Tuesday Blitz"]
[Site "Chess.com"]
[Date "2018.11.06"]
[Round "5"]
[White "Firouzja2003"]
[Black "vugarrasulov"]
[Result "0-1"]
[WhiteElo "2939"]
[BlackElo "2795"]
[TimeControl "180+2"]
[EndTime "14:06:49 PST"]
[Termination "vugarrasulov won on time"]

1. e4 {[%clk 0:03:01.9]} 1... c5 {[%clk 0:03:00.9]} 2. Nf3 {[%clk 0:03:02.9]}
2... d6 {[%clk 0:03:02.5]} 3. d4 {[%clk 0:03:03.8]} 3... cxd4 {[%clk 0:03:04.4]}
4. Nxd4 {[%clk 0:03:05.3]} 4... Nf6 {[%clk 0:03:06.1]} 5. Nc3 {[%clk 0:03:07]}
5... Nc6 {[%clk 0:03:07.7]} 6. Bg5 {[%clk 0:03:07.6]} 6... e6 {[%clk 0:03:08.6]}
7. Qd2 {[%clk 0:03:09]} 7... a6 {[%clk 0:03:10.2]} 8. O-O-O {[%clk 0:03:10.3]}
8... Bd7 {[%clk 0:03:11.8]} 9. f4 {[%clk 0:03:11.7]} 9... b5 {[%clk 0:03:13.1]}
10. Bxf6 {[%clk 0:03:12.8]} 10... gxf6 {[%clk 0:03:13.7]} 11. Kb1 {[%clk
0:03:14.1]} 11... h5 {[%clk 0:03:12.2]} 12. Nxc6 {[%clk 0:02:41.2]} 12... Bxc6
{[%clk 0:03:14.1]} 13. Qe1 {[%clk 0:02:40.8]} 13... Be7 {[%clk 0:02:58.9]} 14.
f5 {[%clk 0:02:29.7]} 14... b4 {[%clk 0:02:53.8]} 15. Ne2 {[%clk 0:02:31.2]}
15... e5 {[%clk 0:02:51.2]} 16. Nc1 {[%clk 0:02:17.3]} 16... a5 {[%clk
0:02:48.4]} 17. Bc4 {[%clk 0:02:17]} 17... Rc8 {[%clk 0:02:43.7]} 18. Qe2 {[%clk
0:02:18]} 18... Qb6 {[%clk 0:02:43.7]} 19. b3 {[%clk 0:02:18.4]} 19... a4 {[%clk
0:02:39.7]} 20. Rd3 {[%clk 0:02:18.9]} 20... a3 {[%clk 0:02:31.6]} 21. Rhd1
{[%clk 0:02:17.8]} 21... h4 {[%clk 0:02:27.3]} 22. Qg4 {[%clk 0:02:13.6]} 22...
Bb5 {[%clk 0:02:21.2]} 23. Bxb5+ {[%clk 0:01:32.6]} 23... Qxb5 {[%clk
0:02:23.1]} 24. Rd5 {[%clk 0:01:28.1]} 24... Qc6 {[%clk 0:02:23.5]} 25. c4
{[%clk 0:01:29.2]} 25... bxc3 {[%clk 0:02:22.9]} 26. Kc2 {[%clk 0:01:30.9]}
26... Qb6 {[%clk 0:02:19.9]} 27. Qf3 {[%clk 0:01:28.9]} 27... Rc5 {[%clk
0:01:56.1]} 28. Ne2 {[%clk 0:01:29.3]} 28... Rxd5 {[%clk 0:01:53.9]} 29. Rxd5
{[%clk 0:01:31.2]} 29... Rg8 {[%clk 0:01:55.2]} 30. Rd3 {[%clk 0:01:02]} 30...
Kd7 {[%clk 0:01:46.7]} 31. Rxc3 {[%clk 0:00:48.7]} 31... Qb4 {[%clk 0:01:41.4]}
32. Rc4 {[%clk 0:00:35.6]} 32... Qe1 {[%clk 0:01:41.9]} 33. Nc3 {[%clk
0:00:22.3]} 33... Qg1 {[%clk 0:01:37]} 34. b4 {[%clk 0:00:17.2]} 34... Qxg2+
{[%clk 0:01:22.2]} 35. Qxg2 {[%clk 0:00:17.3]} 35... Rxg2+ {[%clk 0:01:24.1]}
36. Kb3 {[%clk 0:00:16.8]} 36... Rxh2 {[%clk 0:01:25.7]} 37. Nd5 {[%clk
0:00:17.6]} 37... Bd8 {[%clk 0:01:26]} 38. Kxa3 {[%clk 0:00:18]} 38... Re2
{[%clk 0:01:17]} 39. Ka4 {[%clk 0:00:17.2]} 39... Rxa2+ {[%clk 0:01:17.1]} 40.
Kb5 {[%clk 0:00:18]} 40... Re2 {[%clk 0:01:16.9]} 41. Ka6 {[%clk 0:00:03.7]}
41... h3 {[%clk 0:01:18]} 42. b5 {[%clk 0:00:02.7]} 42... h2 {[%clk 0:01:18]}
43. Rc1 {[%clk 0:00:03.8]} 43... Rxe4 {[%clk 0:01:19.3]} 44. b6 {[%clk
0:00:04.7]} 44... Rc4 {[%clk 0:01:04.4]} 45. Rh1 {[%clk 0:00:02.7]} 45... Kc6
{[%clk 0:01:05.7]} 0-1

[Event "*** Titled Tuesday Blitz"]
[Site "Chess.com"]
[Date "2018.11.06"]
[Round "5"]
[White "OparinGrigoriy"]
[Black "KenanGarayev"]
[Result "1-0"]
[WhiteElo "2928"]
[BlackElo "2751"]
[TimeControl "180+2"]
[EndTime "14:06:53 PST"]
[Termination "OparinGrigoriy won by resignation"]

1. c4 {[%clk 0:03:01.9]} 1... Nf6 {[%clk 0:02:59.8]} 2. Nf3 {[%clk 0:03:02.9]}
2... e6 {[%clk 0:02:59.2]} 3. g3 {[%clk 0:03:02.6]} 3... d5 {[%clk 0:03:00.1]}
4. d4 {[%clk 0:03:04.2]} 4... Be7 {[%clk 0:02:57.3]} 5. Bg2 {[%clk 0:03:04.6]}
5... O-O {[%clk 0:02:57.3]} 6. Nc3 {[%clk 0:03:06.3]} 6... dxc4 {[%clk
0:02:55.6]} 7. Ne5 {[%clk 0:03:07.8]} 7... Nc6 {[%clk 0:02:54.8]} 8. Bxc6 {[%clk
0:03:06.9]} 8... bxc6 {[%clk 0:02:56.7]} 9. Nxc6 {[%clk 0:03:08.8]} 9... Qe8
{[%clk 0:02:58.3]} 10. Nxe7+ {[%clk 0:03:10.4]} 10... Qxe7 {[%clk 0:03:00.2]}
11. Qa4 {[%clk 0:03:11.9]} 11... c5 {[%clk 0:02:52.3]} 12. dxc5 {[%clk
0:03:13.8]} 12... Qxc5 {[%clk 0:02:51]} 13. Be3 {[%clk 0:03:15.4]} 13... Qh5
{[%clk 0:02:47.7]} 14. Qxc4 {[%clk 0:03:08.5]} 14... Bb7 {[%clk 0:02:46.2]} 15.
f3 {[%clk 0:03:09.7]} 15... Bxf3 {[%clk 0:02:38.1]} 16. Rf1 {[%clk 0:02:19.3]}
16... Bd5 {[%clk 0:02:38.3]} 17. Qh4 {[%clk 0:02:14.8]} 17... Qxh4 {[%clk
0:02:34.9]} 18. gxh4 {[%clk 0:02:16.7]} 18... Bb7 {[%clk 0:02:36.8]} 19. Bd4
{[%clk 0:02:10.5]} 19... Ne4 {[%clk 0:02:25.7]} 20. Nxe4 {[%clk 0:02:07.2]}
20... Bxe4 {[%clk 0:02:27.6]} 21. Rc1 {[%clk 0:02:08.5]} 21... Rac8 {[%clk
0:02:21]} 22. Kf2 {[%clk 0:02:07.9]} 22... a6 {[%clk 0:02:20.9]} 23. Rg1 {[%clk
0:01:54.1]} 23... g6 {[%clk 0:02:11.8]} 24. Bf6 {[%clk 0:01:50.3]} 24... h5
{[%clk 0:02:03.7]} 25. Ke3 {[%clk 0:01:48.8]} 25... Bd5 {[%clk 0:02:03.7]} 26.
a3 {[%clk 0:01:45.7]} 26... Rb8 {[%clk 0:01:57.3]} 27. b4 {[%clk 0:01:45.7]}
27... Rfc8 {[%clk 0:01:56.1]} 28. Kf4 {[%clk 0:01:44.5]} 28... Rc4+ {[%clk
0:01:53.7]} 29. Rxc4 {[%clk 0:01:44.2]} 29... Bxc4 {[%clk 0:01:55.6]} 30. e4
{[%clk 0:01:44.5]} 30... Bb5 {[%clk 0:01:47.2]} 31. Rc1 {[%clk 0:01:43.4]} 31...
Ba4 {[%clk 0:01:28.9]} 32. Rc7 {[%clk 0:01:43.8]} 32... Bb5 {[%clk 0:01:29.9]}
33. e5 {[%clk 0:01:40.8]} 33... Ba4 {[%clk 0:01:27.3]} 34. Ke3 {[%clk
0:01:31.4]} 34... Bb5 {[%clk 0:01:19.7]} 35. Kd4 {[%clk 0:01:32.7]} 35... Ba4
{[%clk 0:01:16.4]} 36. Kc5 {[%clk 0:01:29.3]} 36... Bb5 {[%clk 0:01:13]} 37. Kd4
{[%clk 0:01:24.8]} 37... Ba4 {[%clk 0:01:13.7]} 38. Kc3 {[%clk 0:01:26.3]} 38...
Ra8 {[%clk 0:01:10]} 39. Kc4 {[%clk 0:01:17.4]} 39... Bb5+ {[%clk 0:01:07.3]}
40. Kc5 {[%clk 0:01:18.8]} 40... Rb8 {[%clk 0:01:06.5]} 41. Ra7 {[%clk
0:01:19.7]} 41... Rc8+ {[%clk 0:01:05.6]} 42. Kb6 {[%clk 0:01:20.9]} 42... Rb8+
{[%clk 0:00:58.6]} 43. Kc7 {[%clk 0:01:21.2]} 43... Re8 {[%clk 0:00:56.9]} 44.
a4 {[%clk 0:01:21]} 44... Bc4 {[%clk 0:00:50.2]} 45. Rb7 {[%clk 0:01:20.5]}
45... g5 {[%clk 0:00:42.4]} 46. Bxg5 {[%clk 0:01:15.8]} 46... Kh7 {[%clk
0:00:43.4]} 47. b5 {[%clk 0:00:58.6]} 47... axb5 {[%clk 0:00:43.9]} 48. axb5
{[%clk 0:01:00.5]} 48... Kg6 {[%clk 0:00:40.3]} 49. b6 {[%clk 0:01:01.5]} 49...
Ra8 {[%clk 0:00:41.5]} 50. Ra7 {[%clk 0:00:59.8]} 1-0

[Event "*** Titled Tuesday Blitz"]
[Site "Chess.com"]
[Date "2018.11.06"]
[Round "5"]
[White "TastyFrenchFries"]
[Black "1random"]
[Result "0-1"]
[WhiteElo "2386"]
[BlackElo "2493"]
[TimeControl "180+2"]
[EndTime "14:06:55 PST"]
[Termination "1random won by resignation"]

1. Na3 {[%clk 0:03:01.9]} 1... d5 {[%clk 0:02:37.4]} 2. Nh3 {[%clk 0:03:01.6]}
2... Bxh3 {[%clk 0:02:27.5]} 3. gxh3 {[%clk 0:03:03.5]} 3... e5 {[%clk
0:02:28.3]} 4. c4 {[%clk 0:03:04.2]} 4... d4 {[%clk 0:02:27.4]} 5. Bg2 {[%clk
0:02:52.2]} 5... c6 {[%clk 0:02:26.4]} 6. Qb3 {[%clk 0:02:50.9]} 6... Qb6 {[%clk
0:02:19.8]} 7. d3 {[%clk 0:02:40.6]} 7... Bb4+ {[%clk 0:02:04.7]} 8. Kd1 {[%clk
0:02:38.1]} 8... Na6 {[%clk 0:01:27]} 9. Nc2 {[%clk 0:02:33.3]} 9... Be7 {[%clk
0:01:26.2]} 10. Qxb6 {[%clk 0:02:17]} 10... axb6 {[%clk 0:01:28.1]} 11. f4
{[%clk 0:02:17.8]} 11... Bd6 {[%clk 0:01:19.7]} 12. Re1 {[%clk 0:01:52.2]} 12...
Ne7 {[%clk 0:01:04.9]} 13. e3 {[%clk 0:01:42.8]} 13... dxe3 {[%clk 0:00:52.9]}
14. Bxe3 {[%clk 0:01:41.7]} 14... exf4 {[%clk 0:00:44.5]} 15. Bxb6 {[%clk
0:01:40.7]} 15... O-O {[%clk 0:00:43.8]} 16. a3 {[%clk 0:01:18.7]} 16... Ng6
{[%clk 0:00:33.1]} 17. Bf2 {[%clk 0:01:03.3]} 17... Nc5 {[%clk 0:00:24]} 18. Bf1
{[%clk 0:00:48.1]} 18... Nb3 {[%clk 0:00:20.5]} 19. Rb1 {[%clk 0:00:47.1]} 19...
Rad8 {[%clk 0:00:21.4]} 20. Na1 {[%clk 0:00:42.4]} 20... Bc5 {[%clk 0:00:20.7]}
21. Bxc5 {[%clk 0:00:35.3]} 21... Nxc5 {[%clk 0:00:22.6]} 22. Kc2 {[%clk
0:00:36.1]} 22... Ne6 {[%clk 0:00:21.7]} 23. b4 {[%clk 0:00:32.9]} 23... Nd4+
{[%clk 0:00:22.1]} 24. Kc3 {[%clk 0:00:34.3]} 24... f6 {[%clk 0:00:16.6]} 25.
Nb3 {[%clk 0:00:30.4]} 25... Nxb3 {[%clk 0:00:16.1]} 26. Rxb3 {[%clk 0:00:32.3]}
26... Kf7 {[%clk 0:00:14.6]} 27. d4 {[%clk 0:00:32.6]} 27... Rfe8 {[%clk
0:00:15.1]} 28. Rbb1 {[%clk 0:00:32.2]} 28... Nh4 {[%clk 0:00:13.5]} 29. b5
{[%clk 0:00:21.5]} 29... Rxe1 {[%clk 0:00:13.5]} 30. Rxe1 {[%clk 0:00:22.8]}
30... cxb5 {[%clk 0:00:10.6]} 31. cxb5 {[%clk 0:00:23.5]} 31... Nf5 {[%clk
0:00:10.5]} 32. Bc4+ {[%clk 0:00:21.7]} 32... Kf8 {[%clk 0:00:11.8]} 33. d5
{[%clk 0:00:21]} 33... Ne3 {[%clk 0:00:11.7]} 34. Kd4 {[%clk 0:00:21.7]} 34...
Nc2+ {[%clk 0:00:12.9]} 35. Kc5 {[%clk 0:00:22.9]} 35... Nxe1 {[%clk 0:00:14.2]}
36. Kb6 {[%clk 0:00:23.6]} 36... Nc2 {[%clk 0:00:14.7]} 37. Kc7 {[%clk
0:00:24.1]} 37... Ke7 {[%clk 0:00:15.6]} 38. b6 {[%clk 0:00:19.9]} 38... Ne3
{[%clk 0:00:16.3]} 39. Bb3 {[%clk 0:00:20.5]} 39... Nxd5+ {[%clk 0:00:17.4]} 40.
Bxd5 {[%clk 0:00:22.1]} 40... Rxd5 {[%clk 0:00:18.4]} 41. Kxb7 {[%clk 0:00:24]}
41... f3 {[%clk 0:00:19.8]} 42. Kc7 {[%clk 0:00:24.1]} 42... f2 {[%clk
0:00:20.8]} 43. b7 {[%clk 0:00:26]} 43... Rc5+ {[%clk 0:00:21.5]} 44. Kb6 {[%clk
0:00:26.8]} 44... Rc1 {[%clk 0:00:22.4]} 45. b8=Q {[%clk 0:00:25.9]} 45... Rb1+
{[%clk 0:00:23.4]} 46. Kc7 {[%clk 0:00:27.4]} 46... Rxb8 {[%clk 0:00:25.3]} 47.
Kxb8 {[%clk 0:00:28.2]} 47... f1=Q {[%clk 0:00:27.2]} 0-1

[Event "*** Titled Tuesday Blitz"]
[Site "Chess.com"]
[Date "2018.11.06"]
[Round "5"]
[White "BilodeauA"]
[Black "Chopper1905"]
[Result "1-0"]
[WhiteElo "2840"]
[BlackElo "2672"]
[TimeControl "180+2"]
[EndTime "14:07:02 PST"]
[Termination "BilodeauA won by checkmate"]

1. d4 {[%clk 0:02:59.2]} 1... Nf6 {[%clk 0:02:59.9]} 2. Nc3 {[%clk 0:02:59.4]}
2... d5 {[%clk 0:02:58.9]} 3. Bf4 {[%clk 0:03:00.5]} 3... c6 {[%clk 0:02:58.7]}
4. e3 {[%clk 0:03:01.6]} 4... Bf5 {[%clk 0:03:00.1]} 5. f3 {[%clk 0:03:02.6]}
5... e6 {[%clk 0:02:59.2]} 6. g4 {[%clk 0:03:03.6]} 6... Bg6 {[%clk 0:03:00.6]}
7. h4 {[%clk 0:03:05.5]} 7... h6 {[%clk 0:03:01.3]} 8. Bd3 {[%clk 0:03:06.1]}
8... Bxd3 {[%clk 0:03:01.8]} 9. Qxd3 {[%clk 0:03:08]} 9... Bd6 {[%clk
0:02:54.3]} 10. O-O-O {[%clk 0:03:06.8]} 10... Bxf4 {[%clk 0:02:45.6]} 11. exf4
{[%clk 0:03:08.1]} 11... Nbd7 {[%clk 0:02:44.2]} 12. f5 {[%clk 0:03:06.2]} 12...
Qe7 {[%clk 0:02:22.6]} 13. fxe6 {[%clk 0:02:52.2]} 13... fxe6 {[%clk 0:02:24.5]}
14. Nh3 {[%clk 0:02:52]} 14... e5 {[%clk 0:01:21.4]} 15. Rhe1 {[%clk 0:02:51.5]}
15... O-O {[%clk 0:01:06.4]} 16. dxe5 {[%clk 0:02:52.8]} 16... Nxe5 {[%clk
0:01:05.7]} 17. Qd4 {[%clk 0:02:52.8]} 17... Nfd7 {[%clk 0:00:44.6]} 18. f4
{[%clk 0:02:54]} 18... Qxh4 {[%clk 0:00:45.7]} 19. fxe5 {[%clk 0:02:43.6]} 19...
Qxh3 {[%clk 0:00:46.3]} 20. e6 {[%clk 0:02:25.4]} 20... Nf6 {[%clk 0:00:47.3]}
21. Rg1 {[%clk 0:02:10.9]} 21... Qh4 {[%clk 0:00:47.8]} 22. Kb1 {[%clk
0:02:06.8]} 22... Qg5 {[%clk 0:00:48.6]} 23. a3 {[%clk 0:02:01.6]} 23... b6
{[%clk 0:00:47.9]} 24. Rde1 {[%clk 0:02:00.8]} 24... c5 {[%clk 0:00:47.4]} 25.
Qd3 {[%clk 0:02:00.2]} 25... Rae8 {[%clk 0:00:42.6]} 26. Rgf1 {[%clk 0:01:57.2]}
26... Qxg4 {[%clk 0:00:38.8]} 27. e7 {[%clk 0:01:52.8]} 27... Rf7 {[%clk
0:00:39.2]} 28. Nxd5 {[%clk 0:01:53.5]} 28... Qg5 {[%clk 0:00:28]} 29. Rf5
{[%clk 0:01:34.2]} 29... Qh4 {[%clk 0:00:24.5]} 30. Ref1 {[%clk 0:01:32]} 30...
Rexe7 {[%clk 0:00:21.4]} 31. Nxe7+ {[%clk 0:01:31.2]} 31... Rxe7 {[%clk
0:00:23.3]} 32. Ka2 {[%clk 0:01:08]} 32... Qe4 {[%clk 0:00:23.4]} 33. Qb3+
{[%clk 0:01:05.6]} 33... Qe6 {[%clk 0:00:24.2]} 34. c4 {[%clk 0:01:06.2]} 34...
Rd7 {[%clk 0:00:25.1]} 35. R5f4 {[%clk 0:00:51.8]} 35... Rd2 {[%clk 0:00:23.3]}
36. Qc3 {[%clk 0:00:51.4]} 36... Re2 {[%clk 0:00:22.5]} 37. Rg1 {[%clk
0:00:45.8]} 37... Kf7 {[%clk 0:00:18]} 38. Qd3 {[%clk 0:00:43.1]} 38... Kf8
{[%clk 0:00:10.1]} 39. Rxf6+ {[%clk 0:00:26.2]} 39... gxf6 {[%clk 0:00:10]} 40.
Qd8+ {[%clk 0:00:27.2]} 40... Kf7 {[%clk 0:00:08.6]} 41. Qg8+ {[%clk 0:00:27.8]}
41... Ke7 {[%clk 0:00:10.3]} 42. Rg7+ {[%clk 0:00:29]} 42... Kd6 {[%clk
0:00:11.9]} 43. Qb8+ {[%clk 0:00:30.7]} 43... Kc6 {[%clk 0:00:11]} 44. Qc7#
{[%clk 0:00:31.9]} 1-0